Workbook

Sheet Klassieke financiering
A1: Goedgekeurde projecten klassieke subsidies van 1 januari tot 31 december 2025
A2: Klassieke betoelaging: een voorziening kan een vraag indienen tot het bekomen van investeringsbetoelaging (= subsidiebelofte) voor een beoogde investering. Het bedrag van de investeringsbetoelaging wordt aangerekend op de VIPA-kredieten op het moment van het verlenen van de subsidiebelofte. De subsidiebetalingen gebeuren in 5 schijven op basis van voorgelegde facturen. De subsidiebelofte wordt met 50% geïndexeerd op het moment van het aanvangsbevel van de werken en 50% op het moment van de ingebruikname.
A3: Dossiernummer | B3: Provincie | C3: Gemeente voorziening | D3: Initiatiefnemer | E3: Voorziening | F3: Project | G3: Verleende subsidiebeloften | H3: Goedkeuring
A4: Voorzieningen Opgroeien | G4: =SUM(G5:G14) -> 903945.4605
A5: BJB162-A-MV | B5: Antwerpen | C5: Antwerpen | D5: Pleegzorg Provincie Antwerpen vzw | E5: Pleegzorg Provincie Antwerpen - afdeling Antwerpen-Zuid | F5: verbouwing van een kantoorgebouw in de Heilig Hartstraat 12-14 en de Uitbreidingstraat 184 in Antwerpen | G5: 73279.55 | H5: aanvullende belofte door indexering na ingebruikname 17/01/2025
A6: 20K145 | B6: Limburg | C6: Halen | D6: Familiehulp kinderopvang De Speelboom vzw | E6: De Speelboom Halen | F6: voltooiingswerken voor het Kinderdagverblijf 't Pagadderke voor 28 plaatsen (capaciteitsvervanging) in de Doelstraat 26-30 te Halen | G6: 67913.14 | H6: aanvullende belofte door indexering na ingebruikname 30/01/2025
A7: 20K059 | B7: Brussel | C7: Schaarbeek | D7: t Pasrel vzw | E7: Onthaal-, Oriëntatie- en Observatiecentrum 't Pasrel | F7: nieuwbouw voor het Onthaal-, Oriëntatie- en Observatiecentrum 't Pasrel Brussel in de Wilderstraat in Sint-Agatha-Berchem | G7: 14577.23475 | H7: aanvullende belofte door indexering na aanvangsbevel 5/02/2025
A8: 22K041 | B8: West-Vlaanderen | C8: Oostende | D8: Familiehulp Kinderopvang De Speelboom vzw | E8: De Speelboom Oostende-Centrum | F8: nieuwbouw van een kinderdagverblijf met 87 plaatsen (capaciteitsvervanging) op het Mispelplein in Oostende | G8: 64558.35035 | H8: aanvullende belofte door indexering na aanvangsbevel 12/02/2025
A9: 22K060 | B9: Oost-Vlaanderen | C9: Sint-Niklaas | D9: Kaldoun BVBA | E9: Het Droomwolkje 3 | F9: uitbreiding voor de Kinderopvang Het Droomwolkje 3 met 17 plaatsen (capaciteitsvervanging) in de Boonhemstraat 2 in Sint-Niklaas | G9: 6791.831907 | H9: aanvullende belofte door indexering na aanvangsbevel 12/02/2025
A10: 22K013 | B10: Limburg | C10: Kinrooi | D10: Jeugdzorgcentrum vzw | E10: Organisatie voor Bijzondere Jeugdzorg Jeugdzorgcentrum | F10: nieuwbouw van een jeugdzorgcentrum voor 20 jongeren (capaciteitsvervanging) in de Spoorwegstraat 20-22 in Maaseik | G10: 31160.07 | H10: aanvullende belofte door indexering na aanvangsbevel 18/02/2025
A11: 23K051 | B11: Vlaams-Brabant | C11: Sint-Genesius-Rode | D11: Consolata Regio Sint-Genesius-Rode vzw | E11: 't Kapoentje | F11: nieuwbouw van een kinderdagverblijf voor 23 plaatsen (capaciteitsuitbreiding) op Zorgsite Sint-Genesius-Rode in de Zoniënwoudlaan in Sint-Genesius-Rode | G11: 5221.803474 | H11: aanvullende belofte door indexering na aanvangsbevel 28/02/2025
A12: 21K039 | B12: Antwerpen | C12: Temse | D12: Helan Kinderopvang vzw | E12: Helan Kinderopvang - Tijgertuin | F12: ingrijpende duurzame verbouwing voor kinderopvang Tijgertuin met 28 plaatsen in de Antwerpsestraat 180 in Temse | G12: 1025.5 | H12: aanvullende belofte door indexering na aanvangsbevel 28/02/2025
A13: 20K023 | B13: Antwerpen | C13: Brasschaat | D13: Kinderdagverblijf Augustijntje vzw | E13: Augustijntje | F13: nieuwbouw van een kinderopvang voor 28 plaatsen in de Augustijnslei 54 in Brasschaat | G13: 633344.92 | H13: 2025-03-24
A14: 23K012 | B14: Limburg | C14: Gingelom | D14: OCMW Gingelom | E14: Minimax | F14: verbouwing van de kinderopvang Minimax met 40 plaatsen op de Steenweg 107 - 109 - 111 in Gingelom | G14: 6073.06 | H14: 2025-03-24 | I14: deel op budget 2024, deel op budget 2025
A15: Woonzorgvoorzieningen | G15: =SUM(G16:G19) -> 46989.30742
A16: 23K033 | B16: Antwerpen | C16: Geel | D16: OCMW Welzijnszorg Kempen | E16: Welzijnszorg Kempen | F16: nieuwbouw voor een centrum voor dagopvang op de campus Lindelo op het Kerkplein 20 B in Lille | G16: 3274.64 | H16: aanvullende belofte door indexering na aanvangsbevel 6/01/2025
A17: 21K054 | B17: Antwerpen | C17: Grobbendonk | D17: OCMW Grobbendonk | E17: Lokaal Dienstencentrum OCMW Grobbendonk | F17: nieuwbouw van een antennepunt voor een bestaand lokaal dienstencentrum in de Kasteeldreef 1 in Grobbendonk (Bouwel) | G17: 8442.145654 | H17: aanvullende belofte door indexering na aanvangsbevel 5/02/2025
A18: 23K006 | B18: Antwerpen | C18: Duffel | D18: OCMW Duffel | E18: Lokaal Dienstecentrum Duffel | F18: uitbreiding en verbouwing van een lokaal dienstencentrum (capaciteitsuitbreiding) in de Kwakkelenberg 3 in Duffel | G18: 10177.11558 | H18: aanvullende belofte door indexering na aanvangsbevel 28/02/2025
A19: 22K039 | B19: Antwerpen | C19: Balen | D19: OCMW Balen | E19: Lokaal Dienstencentrum | F19: nieuwbouw van een lokaal dienstencentrum in de Rozestraat 11 in Balen | G19: 25095.40618 | H19: aanvullende belofte door indexering na aanvangsbevel 4/03/2025
A20: Voorzieningen voor Preventieve en ambulante Gezondheidszorg | G20: =SUM(G21:G24) -> 1242215.161
A21: 21K063 | B21: Brussel | C21: Sint-Jans-Molenbeek | D21: Wijkgezondheidscentrum De Brug vzw | E21: Wijkgezondheidscentrum De Brug | F21: uitbreiding en een beperkte verbouwing voor het Wijkgezondheidscentrum De Brug in de Onafhankelijkheidsstraat 142-144 in Sint-Jans-Molenbeek | G21: 16622.72993 | H21: aanvullende belofte door indexering na aanvangsbevel 5/02/2025
A22: 21K010 | B22: Antwerpen | C22: Lier | D22: Wijkgezondheidscentrum De Zilveren Knoop vzw | E22: Wijkgezondheidscentrum De Zilveren Knoop | F22: ingrijpende duurzame verbouwing en uitbreiding voor het Wijkgezondheidscentrum De Zilveren Knoop, met minder dan 2.000 patiënten, in de Lisperstraat 108 in Lier | G22: 16730.27096 | H22: aanvullende belofte door indexering na aanvangsbevel 24/02/2025
A23: 20K171 | B23: Antwerpen | C23: Antwerpen | D23: Centrum voor Geestelijke Gezondheidszorg Andante vzw | E23: Centrum voor Geestelijke Gezondheidszorg Andante | F23: ingrijpende duurzame verbouwing en uitbreiding van de brouwerijsite voor het Centrum voor Geestelijke Gezondheidszorg Andante in de Hertstraat 5 in Antwerpen (Deurne) | G23: 94571.87962 | H23: aanvullende belofte door indexering na aanvangsbevel 18/03/2025
A24: 20K175 | B24: Antwerpen | C24: Mechelen | D24: Wel en Wee vzw | E24: Wijkgezondheidscentrum Wel en Wee | F24: nieuwbouw voor het Wijkgezondheidscentrum Wel en Wee voor 2.500 patiënten in de Zwartzustersvest 47 in Mechelen | G24: 1114290.28 | H24: 2025-04-05
A25: Voorzieningen voor Personen met een handicap | G25: =SUM(G26:G34) -> 530766.592
A26: 20K177 | B26: West-Vlaanderen | C26: Zedelgem | D26: Inspirant vzw | E26: Multifunctioneel Centrum Inspirant | F26: uitbreiding van het Multifunctioneel Centrum Inspirant met een internaat voor 5 minderjarigen (capaciteitsvervanging) in de Sportlaan 20 in Zedelgem (Aartrijke) | G26: 111198.49 | H26: aanvullende belofte door indexering na ingebruikname 30/01/2025
A27: 21K075 | B27: West-Vlaanderen | C27: Zedelgem | D27: Inspirant vzw | E27: Multifunctioneel Centrum Inspirant | F27: uitbreiding van het Multifunctioneel Centrum Inspirant met een internaat voor 5 minderjarigen (capaciteitsvervanging) in de Sportlaan 20 in Zedelgem (Aartrijke) | G27: 12495.93 | H27: aanvullende belofte door indexering na ingebruikname 30/01/2025
A28: 22K006 | B28: Limburg | C28: Peer | D28: Begeleidingscentrum Sint-Elisabeth vzw | E28: Sint-Elisabeth | F28: nieuwbouw van een Multifunctioneel Centrum voor een GES-project voor 20 personen (capaciteitsvervanging) met ernstige gedrags- en emotionele problemen in de Sint-Elisabethlaan 20 in Peer (Wijchmaal) | G28: 45698.63704 | H28: aanvullende belofte door indexering na aanvangsbevel 11/03/2025
A29: 24BU024 | B29: West-Vlaanderen | C29: Oostende | D29: Centrum voor Ambulante Revalidatie Stappie vzw | E29: Centrum voor Ambulante Revalidatie Stappie | F29: aankoop bijzondere uitrusting: een tympanometer en een Aurical Hitbox voor het Centrum voor Ambulante Revalidatie Stappie in de Koninginnelaan 55-57 in Oostende | G29: 211.4049163 | H29: aanvullende belofte door indexering na bestelling 24/03/2025
A30: 20K020 | B30: Oost-Vlaanderen | C30: Lokeren | D30: Zorg en Onderwijs De Hagewinde vzw | E30: De Hagewinde | F30: nieuwbouw van 2 zorggroepen voor 22 verblijfplaatsen (capaciteitsvervanging) in de Poststraat 6 in Lokeren | G30: 243989.09 | H30: aanvullende belofte door indexering na aanvangsbevel 25/03/2025
A31: 24BU122 VAPH-Inge | B31: Oost-Vlaanderen | C31: Gent | D31: Centrum voor Ambulante Revalidatie Impuls vzw | E31: Centrum voor Ambulante Revalidatie Impuls | F31: aankoop van bijzondere uitrusting: een nieuw computerpark: vervangen van de firewall, laptops, schermen, headsets, beamer en caremanager voor het Centrum voor Ambulante Revalidatie Impuls in de Karel Lodewijk Dierickxstraat 30 in Gent | G31: 37091.06 | H31: 2025-04-05
A32: 24BU123 VAPH-Inge | B32: Oost-Vlaanderen | C32: Gent | D32: Centrum voor Ambulante Revalidatie Impuls vzw | E32: Centrum voor Ambulante Revalidatie Impuls | F32: aankoop van bijzondere uitrusting: een nieuw computerpark: M365 licenties, Barracuda email en databeveiliging, keyboards en draadloze muizen voor het Centrum voor Ambulante Revalidatie Impuls in de Karel Lodewijk Dierickxstraat 30 in Gent | G32: 27152.18 | H32: 2025-04-05
A33: 24BU124 VAPH-Inge | B33: Oost-Vlaanderen | C33: Gent | D33: Centrum voor Ambulante Revalidatie Impuls vzw | E33: Centrum voor Ambulante Revalidatie Impuls | F33: aankoop van bijzondere uitrusting: een nieuw computerpark: UPS, Ipads, Desktop, werkuren, onderhoud voor 5 jaar en de aankoop van een interactief spelsysteem (Tovertafel) voor het Centrum voor Ambulante Revalidatie Impuls in de Karel Lodewijk Dierickxstraat 30 in Gent | G33: 35728.36 | H33: 2025-04-05
A34: 24BU129 VAPH-Inge | B34: Oost-Vlaanderen | C34: Deinze | D34: Centrum voor Ambulante Revalidatie Ter Kouter vzw | E34: Centrum voor Ambulante Revalidatie Ter Kouter | F34: aankoop van bijzondere uitrusting: actualisatie van de huidige ICT-infrastructuur van een deel van therapeutische equipe en aankoop van een gehoorrevalidatietoestel Aurical Hit Box voor het Centrum voor Ambulante Revalidatie Ter Kouter in Aaltersesteenweg 2 in Deinze | G34: 17201.44 | H34: 2025-04-05
F35: Totaal goedgekeurde investeringen | G35: =SUM(G4,G15,G20,G25) -> 2723916.52
B37: Overzicht per provincie
B38: Antwerpen | C38: =SUMIF($B$4:$B$36,B38,$G$4:$G$36) -> 1980231.708
B39: Limburg | C39: =SUMIF($B$4:$B$36,B39,$G$4:$G$36) -> 150844.907
B40: Oost-Vlaanderen | C40: =SUMIF($B$4:$B$36,B40,$G$4:$G$36) -> 367953.9619
B41: Vlaams-Brabant | C41: =SUMIF($B$4:$B$36,B41,$G$4:$G$36) -> 5221.803474
B42: West-Vlaanderen | C42: =SUMIF($B$4:$B$36,B42,$G$4:$G$36) -> 188464.1753
B43: Totaal | C43: =SUM(C38:C42) -> 2692716.556
B45: Brussel | C45: =SUMIF($B$4:$B$36,B45,$G$4:$G$36) -> 31199.96468
B46: Algemeen totaal | C46: =SUM(C43,C45) -> 2723916.52

Sheet Infrastructuurforfait PMH
A1: Goedgekeurde projecten persoonsvolgende financiering van 1 januari tot 31 december 2025
A2: Infrastructuurforfait personen met een handicap: Deze betoelagingsvorm is van toepassing voor de meerderjarige personen met een handicap. Een voorziening kan een vraag indienen tot het bekomen van een akkoord infrastructuurforfait voor een beoogde investering. Zodra desbetreffende infrastructuur in gebruik wordt genomen, start de uitbetaling van het infrastructuurforfait. De grootte van dat forfait is afhankelijk van de zorgzwaarte van de personen met een handicap die gebruik maakt van de infrastructuur en wordt aangepast aan de bezetting. Rekening houdend met voorgaande elementen wordt het forfait voor onbepaalde duur jaarlijks uitbetaald zolang er bezetting is. Het forfait moet door de voorziening als korting doorgerekend worden naar de persoon met een handicap. Het forfait wordt jaarlijks aangerekend op de VIPA-kredieten op het moment van uitbetaling. Het overzicht bevat de voorzieningen die in 2025 een akkoord infrastructuurforfait verkregen. De betaling van subsidies zal dus voor deze projecten starten vanaf ingebruikname.
A3: Dossiernummer | B3: Provincie | C3: Gemeente | D3: Initiatiefnemer | E3: Voorziening | F3: Project | G3: Globale investeringskost all-in (BTW + studiekosten) door de voorziening opgegeven | H3: Verleende infrastructuurforfaits | I3: Goedkeuring
A4: PH907-W-IDB | B4: West-Vlaanderen | C4: Brugge | D4: Viro vzw | E4: Viro | F4: nieuwbouw voor volwassenen met een verstandelijke beperking met 20 kamers en 4 studio' s voor 24 gebruikers met woonondersteuning (capaciteitsvervanging) en voor 26,91 gebruikers met collectieve zorg in de Koning Albert I-laan 188 in Brugge (Sint-Michiels-Brugge) | G4: 5287047 | H4: 101022.11 | I4: 2025-02-10
A5: PH905-A-IDB | B5: Antwerpen | C5: Zoersel | D5: Emmaüs vzw | E5: Monnikenheide-Spectrum | F5: nieuwbouw en verbouwing voor 27 gebruikers met woonondersteuning en collectieve zorg en voor 26,65 gebruikers met dagondersteuning, project Gildenhuis, in de Stationsstraat 57-59-61 in Essen | G5: 9300000 | H5: 159532.16 | I5: 2025-03-24
A6: PH909-O-IDB | B6: Oost-Vlaanderen | C6: Sint-Niklaas | D6: De Klokke vzw | E6: De Klokke | F6: nieuwbouw voor 8 gebruikers met woonondersteuning en collectieve zorg en voor 2 gebruikers met dagondersteuning (allemaal capaciteitsuitbreiding) in de Meerstraat 39 in Stekene | G6: 1913934 | H6: 35687.52 | I6: 2025-03-24
F7: Totaal goedgekeurde investeringen | H7: =SUM(H4:H6) -> 296241.79
B9: Overzicht per provincie
B10: Antwerpen | C10: =SUMIF($B$4:$B$8,B10,$H$4:$H$8) -> 159532.16
B11: Limburg | C11: =SUMIF($B$4:$B$8,B11,$H$4:$H$8) -> 0
B12: Oost-Vlaanderen | C12: =SUMIF($B$4:$B$8,B12,$H$4:$H$8) -> 35687.52
B13: Vlaams-Brabant | C13: =SUMIF($B$4:$B$8,B13,$H$4:$H$8) -> 0
B14: West-Vlaanderen | C14: =SUMIF($B$4:$B$8,B14,$H$4:$H$8) -> 101022.11
B15: Totaal | C15: =SUM(C10:C14) -> 296241.79
B17: Brussel | C17: =SUMIF($B$4:$B$8,B17,$H$4:$H$8) -> 0
B18: Algemeen totaal | C18: =SUM(C17,C15) -> 296241.79

Sheet Blad16 (hidden)

Sheet Blad17 (hidden)

Sheet Blad1 (hidden)
